fUSD/lending_fUSD_20240403
["ID","MTS","AMOUNT","RATE_DAILY","PERIOD"]
[321410338,1712158233189,-539.56,0.0002441,2]
[321410339,1712158233199,-539.56,0.00024416,2]
[321410340,1712158233208,-166.74,0.0002442,2]
[321410341,1712158233217,-539.56,0.00024423,2]
[321410342,1712158233226,-539.56,0.00024429,2]
[321410343,1712158233235,-539.56,0.00024436,2]
[321410344,1712158233244,-539.56,0.00024442,2]
[321410345,1712158233253,-705.63,0.00024443,2]
[321410346,1712158233263,-241.20619637,0.00024448,2]
[321410347,1712158234257,-298.35380363,0.00024448,2]
[321410348,1712158234267,-539.56,0.00024455,2]
[321410349,1712158234588,-539.56,0.00024461,2]
[321410350,1712158234626,-539.56,0.00024468,2]
[321410351,1712158234646,-539.56,0.00024474,2]
[321410352,1712158234656,-539.56,0.0002448,2]
[321410353,1712158234667,-539.56,0.00024487,2]
[321410354,1712158234676,-539.56,0.00024493,2]
[321410355,1712158234689,-539.56,0.000245,2]
[321410356,1712158234698,-539.56,0.00024506,2]
[321410357,1712158234708,-705.63,0.00024508,2]
[321410358,1712158234716,-539.56,0.00024512,2]
[321410359,1712158234727,-539.56,0.00024519,2]
[321410360,1712158234737,-705.63,0.00024572,2]
[321410361,1712158234747,-230.372,0.00024617,2]
[321410362,1712158234758,-1226.0,0.00024617,2]
[321410363,1712158234770,-1256.0,0.00024617,2]
[321410364,1712158234779,-705.63,0.00024637,2]
[321410365,1712158234789,-685.4555523,0.0002468,2]
[321410366,1712158235442,-8711.1995071,0.0002468,2]
[321410367,1712158235452,-1725.99788438,0.00024692,2]
[321410368,1712158235462,-705.63,0.00024702,2]
[321410369,1712158235472,-265.15975672,0.00024722,2]
[321410370,1712158235481,-265.15975671,0.0002474,2]
[321410371,1712158235490,-209.01652617,0.00024754,2]
[321410372,1712158235500,-265.15975671,0.00024757,2]
[321410373,1712158235509,-150.0,0.00024764,2]
[321410374,1712158235518,-705.63,0.00024767,2]
[321410375,1712158235528,-738.79,0.00024767,2]
[321410376,1712158235538,-265.15975671,0.00024775,2]
[321410377,1712158235547,-261.12,0.0002478,2]
[321410378,1712158235556,-46164.3183,0.0002478,2]
[321410379,1712158235565,-419.6411,0.0002478,2]
[321410380,1712158235574,-230.1125,0.0002478,2]
[321410381,1712158235583,-164.25729466,0.0002478,2]
[321410382,1712158235591,-1377.06412293,0.0002478,2]
[321410395,1712158238281,-538.0,0.00024617,2]
[321410396,1712158238291,-956.3448552,0.00024617,2]
[321410397,1712158238303,-92.6551448,0.00024617,2]
[321410398,1712158238312,-283.528,0.00024617,2]
[321410399,1712158238321,-7492.65147707,0.0002478,2]
[321410400,1712158238331,-265.15975671,0.00024792,2]
[321410401,1712158238339,-186.93,0.00024822,2]
[321410402,1712158238349,-358.17806294,0.00024832,2]
[321410403,1712158238361,-347.45193706,0.00024832,2]
[321410404,1712158238371,-397.36894188,0.00024866,2]
[321410405,1712158238381,-187.89,0.0002487,2]
[321410406,1712158238391,-200.0,0.00024878,2]
[321410407,1712158238401,-307.66585902,0.00024878,2]
[321410408,1712158238410,-155.31728392,0.00024878,2]
[321410409,1712158238419,-155.56548059,0.00024878,2]
[321410410,1712158238429,-243.58662989,0.00024878,2]
[321410411,1712158238441,-2360.27673107,0.00024878,2]
[321410412,1712158238453,-1070.48208569,0.00024878,2]
[321410413,1712158238462,-242.09022781,0.00024878,2]
[321410414,1712158238472,-358.83292469,0.00024878,2]
[321410415,1712158238481,-155.43469678,0.00024878,2]
[321410416,1712158238490,-792.68151401,0.00024878,2]
[321410417,1712158238499,-2138.31720221,0.00024878,2]
[321410418,1712158238508,-430.87012157,0.00024878,2]
[321410419,1712158238517,-238.77329209,0.00024878,2]
[321410420,1712158238526,-557.78976585,0.00024878,2]
[321410421,1712158238536,-204.89532362,0.00024878,2]
[321410422,1712158238546,-269.0721569,0.00024878,2]
[321410423,1712158238556,-196.41457958,0.00024878,2]
[321410424,1712158238566,-643.45097979,0.00024878,2]
[321410425,1712158238576,-155.67351033,0.00024878,2]
[321410426,1712158238586,-201.70306154,0.00024878,2]
[321410427,1712158238595,-300.43506843,0.00024878,2]
[321410428,1712158238604,-1201.40653351,0.00024878,2]
[321410429,1712158238614,-326.90281016,0.00024878,2]
[321410430,1712158238624,-196.56110865,0.00024878,2]
[321410432,1712158238634,-272.70715086,0.00024878,2]
[321410433,1712158238644,-156.20978343,0.00024879,2]
[321410434,1712158238658,-28868.74251338,0.0002488,2]
[321410440,1712158238816,-277.3792512,0.0002488,2]
[321410444,1712158238848,-20513.194754,0.0002488,2]
[321410450,1712158240608,-681.6360835,0.0002488,2]
[321410451,1712158240622,-19722.32502482,0.0002488,2]
[321410452,1712158240711,-174936.7223731,0.0002488,2]
[321410453,1712158240721,-98558.3503,0.0002488,2]
[321410455,1712158240734,-705.63,0.00024897,2]
[321410457,1712158240744,-1291.15808209,0.000249,2]
[321410459,1712158240754,-215.96061491,0.000249,2]
[321410461,1712158240763,-164.25729466,0.000249,2]
[321410463,1712158240773,-1000.0,0.000249,2]
[321410465,1712158240783,-161.92114145,0.000249,2]
[321410467,1712158240792,-551.04801816,0.000249,2]
[321410469,1712158240802,-564.62748339,0.000249,2]
[321410471,1712158240811,-1644.47370262,0.000249,2]
[321410473,1712158240821,-685.03451788,0.0002497,2]
[321410475,1712158240831,-663.30744562,0.0002497,2]
[321410476,1712158240842,-381.13767216,0.0002497,2]
[321410478,1712158240851,-1138.03292914,0.0002497,2]
[321410479,1712158240862,-217.444,0.00024978,2]
[321410480,1712158240872,-194.0,0.00024978,2]
[321410481,1712158240883,-449.619,0.00024978,2]
[321410482,1712158240893,-1140.0,0.00024978,2]
[321410483,1712158240903,-560.424,0.00024978,2]
[321410484,1712158240913,-151.027,0.00024978,2]
[321410485,1712158240923,-229.753,0.00024978,2]
[321410486,1712158240932,-251.458,0.00024978,2]
[321410487,1712158240941,-4871.435,0.00024978,2]
[321410488,1712158240951,-459.0,0.00024978,2]
[321410489,1712158240961,-5696.0,0.00024978,2]
[321410490,1712158240971,-2427.0,0.00024978,2]
[321410491,1712158240981,-964.0,0.00024978,2]
[321410492,1712158240991,-1185.351,0.00024978,2]
[321410493,1712158241000,-43048.0,0.00024978,2]
[321410494,1712158241010,-178.52843385,0.00024988,2]
[321410495,1712158241020,-187.89,0.0002499,2]
[321410496,1712158241030,-187.89,0.0002499,2]
[321410497,1712158241040,-808.32318404,0.00024998,2]
[321410498,1712158241049,-377.07530359,0.00024998,2]
[321410499,1712158241059,-179.61364292,0.00024998,2]
[321410500,1712158241069,-4697.47901234,0.00024998,2]
[321410501,1712158241079,-407.37982152,0.00024998,2]
[321410502,1712158241089,-323.17336322,0.00024998,2]
[321410503,1712158241098,-311.98057188,0.00024998,2]
[321410504,1712158241108,-303.76984911,0.00024998,2]
[321410505,1712158241118,-1043.94196735,0.00024998,2]
[321410506,1712158241129,-192.21755063,0.00024998,2]
[321410507,1712158241139,-437.73313324,0.00024998,2]
[321410508,1712158241148,-218.90140169,0.00024998,2]
[321410509,1712158241158,-1426.4091431,0.00024998,2]
[321410510,1712158241169,-155.0,0.00024998,2]
[321410511,1712158241179,-2162.89736187,0.00024998,2]
[321410512,1712158241189,-295.17259541,0.00024998,2]
[321410513,1712158241200,-12149.02543388,0.00024999,2]
[321410514,1712158241210,-300.0,0.00024999,2]
[321410515,1712158241220,-300.0,0.00024999,2]
[321410516,1712158241229,-300.0,0.00024999,2]
[321410517,1712158241239,-300.0,0.00024999,2]
[321410518,1712158241248,-300.0,0.00024999,2]
[321410519,1712158241259,-303.58520191,0.00024999,2]
[321410520,1712158241269,-190449.75633877,0.00025,2]
[321410521,1712158241279,-240.54607001,0.00025,2]
[321410522,1712158241290,-5174622.25251888,0.00025,2]
[321410523,1712158241299,-1006.0,0.00025,2]
[321410524,1712158241309,-2216560.83284867,0.00025,2]
[321410525,1712158241319,-2478.22629473,0.00025,2]
[321410526,1712158241328,-168361.32594646,0.00025,2]
[321410527,1712158241338,-155.0,0.00025,2]
[321410528,1712158241348,-419386.92220323,0.00025,2]
[321410539,1712158243238,-208.69298693,0.000249,2]
[321410542,1712158243249,-44196.57967063,0.00025,2]
[321410560,1712158243475,-2480.01473714,0.00025,2]
[321410561,1712158243488,-1380.06638827,0.00025,2]
[321410562,1712158243499,-2980.17399991,0.00025,2]
[321410563,1712158243512,-2110.58974969,0.00025,2]
[321410602,1712158246322,-1269.0,0.00024966,2]
[321410604,1712158246331,-18981.00000028,0.00025,2]
[321410608,1712158246419,-13590.20242739,0.00025,2]
[321410609,1712158246612,-152892.57706343,0.00025,2]
[321410610,1712158262156,1250.0,0.00021,3]
[321410611,1712158263367,1300.0,0.00023,3]
[321410612,1712158264537,1350.0,0.00025,3]
[321410613,1712158384696,240.0,0.0002499,15]
[321410614,1712158517536,-300.0,0.00023281,2]
[321410615,1712158517558,-1302.0,0.00023305,2]
[321410616,1712159228143,-336.422569,0.00021167,2]
[321410617,1712159228164,-179.32336699,0.00021274,2]
[321410618,1712159228183,-150.0,0.00021372,2]
[321410619,1712159228203,-19366.1011611,0.00021373,2]
[321410620,1712159228226,-1365.07,0.00021374,2]
[321410621,1712159228249,-2399.87203545,0.00022,2]
[321410622,1712159302908,1367.54,0.00020152,2]
[321410623,1712159348170,-505.86,0.00021965,2]
[321410624,1712159348191,-364.59949818,0.00022,2]
[321410625,1712159348211,-1644.91015271,0.00022026,2]
[321410626,1712159348231,-200.0,0.00022027,2]
[321410627,1712159348252,-81.82621827,0.00022046,2]
[321410628,1712159349115,-1456.43378173,0.00022046,2]
[321410629,1712159349135,-3053.84,0.0002206,2]
[321410630,1712159349160,-150.0,0.00022072,2]
[321410631,1712159349183,-200.0,0.00022073,2]
[321410632,1712159349203,-1483.57,0.00022073,2]
[321410633,1712159349224,-365.15,0.00022073,2]
[321410634,1712159349244,-499.99,0.00022073,2]
[321410635,1712159349263,-481.08,0.00022073,2]
[321410636,1712159349283,-818.05,0.00022082,2]
[321410637,1712159349303,-4107.66,0.00022082,2]
[321410638,1712159349322,-664.73,0.00022082,2]
[321410639,1712159349342,-302.14,0.00022082,2]
[321410640,1712159349364,-277.18,0.00022082,2]
[321410641,1712159349385,-250.0,0.00022082,2]
[321410642,1712159349407,-1367.54,0.00022416,2]
[321410643,1712159367728,212.74496021,0.00020152,2]
[321410644,1712159421937,500.0,0.00022087,2]
[321410645,1712159423264,500.0,0.00022094,2]
[321410667,1712159431503,-654.22,0.00022669,2]
[321410668,1712159431515,-463.7839458,0.00022669,2]
[321410669,1712159431526,-536.2560542,0.00022669,2]
[321410670,1712159431535,-150.0,0.00022684,2]
[321410671,1712159431544,-1103.7439458,0.00022795,2]
[321410672,1712159431756,-12.6360542,0.00022795,2]
[321410673,1712159431773,-3277.7739458,0.000228,2]
[321410674,1712159431807,-945.2760542,0.000228,2]
[321410675,1712159431816,-250.0,0.00022816,2]
[321410676,1712159431826,-198.54,0.00022848,2]
[321410677,1712159431835,-2772.13,0.00022848,2]
[321410678,1712159431844,-5000.0,0.000229,2]
[321410679,1712159431853,-3664.4286463,0.00022952,2]
[321410680,1712159431862,-266.87,0.00022952,2]
[321410681,1712159431871,-154.8723748,0.00022952,2]
[321410682,1712159431880,-13593.24005819,0.00022998,2]
[321410683,1712159431890,-350.10584712,0.00022999,2]
[321410684,1712159431904,-500.0,0.00022999,2]
[321410685,1712159431913,-38290.67449718,0.00023,2]
[321410686,1712159431944,-211709.32550282,0.00023,2]
[321410687,1712159431953,-196433.85790517,0.00023,2]
[321410689,1712159431964,-5667.66022868,0.00023,2]
[321410701,1712159432059,4038.8,0.00022094,2]
[321410750,1712159437606,-2e-08,0.00022999,2]
[321410752,1712159437871,-538.58257772,0.00022999,2]
[321410753,1712159437979,-395.38730554,0.00023,2]
[321410761,1712159438527,-45629.20524599,0.00023,2]
[321410762,1712159438577,-1715.02192758,0.00023,2]
[321410763,1712159438630,-282.84846438,0.00023,2]
[321410764,1712159439584,-6620.4000376,0.00023,2]
[321410765,1712159439770,-377.48999988,0.00023,2]
[321410769,1712159442478,-4044.88461364,0.00023,2]
[321410770,1712159442490,-2925.53905445,0.00023,2]
[321410771,1712159442502,-6198.77910053,0.00023,2]
[321410772,1712159442513,-2993.08200099,0.00023,2]
[321410773,1712159442525,-3272.89858393,0.00023,2]
[321410774,1712159442624,-17739.95229183,0.00023,2]
[321410775,1712159442725,-2294.67915621,0.00023,2]
[321410776,1712159442737,-3758.76197892,0.00023,2]
[321410777,1712159442756,-4540.0,0.00023,2]
[321410778,1712159442874,-909.75,0.00023,2]
[321410779,1712159442918,-8584.92,0.00023,2]
[321410780,1712159442929,-1769.976,0.00023,2]
[321410806,1712159445449,-6546.012,0.00023,2]
[321410808,1712159445461,-11078.19711084,0.00023,2]
[321410810,1712159445472,-65842.92563396,0.00023,2]
[321410812,1712159445483,-1315.69493677,0.00023,2]
[321410819,1712159445535,-1068.21830524,0.00023,2]
[321410827,1712159445602,-601.93717688,0.00023,2]
[321410829,1712159445614,-668600.64623863,0.00023,2]
[321410841,1712159445722,-3294.5,0.00023,2]
[321410844,1712159445734,-455.20973323,0.00023,2]
[321410846,1712159445746,-860.37603026,0.00023,2]
[321410857,1712159446965,160.48399293,0.00020152,2]
[321410858,1712159447740,820.97,0.0002299,3]
[321410864,1712159514244,840.58,0.00022082,2]
[321410865,1712159516492,3096.07324993,0.00015,10]
[321410866,1712159516518,8914.97161614,0.00015,10]
[321410867,1712159516839,1823.05,0.00022082,2]
[321410868,1712159521006,1340.14,0.00022084,2]
[321410869,1712159544053,23900.0,0.00022087,2]
[321410870,1712159556335,155.0,0.00020698,2]
[321410871,1712159560909,155.19232694,0.00020698,2]
[321410872,1712159562712,67.26767306,0.00017664,2]
[321410873,1712159562738,106.53232694,0.00017664,2]
[321410874,1712159773095,1248.65,0.0002012,2]
[321410875,1712159872881,1229.94013664,0.0002,2]
[321410877,1712160082759,1250.0,0.00021,3]
[321410878,1712160083917,1300.0,0.00023,3]
[321410879,1712160085050,1350.0,0.00025,3]
[321410880,1712160260056,480.0,0.00025,8]
[321410881,1712160305797,1186.21,0.00019702,2]
[321410883,1712160441628,-442.52901217,0.00021579,2]
[321410884,1712160441649,-362.39,0.0002158,2]
[321410885,1712160441670,-500.0,0.0002159,2]
[321410886,1712160441691,-3070.12,0.00021591,2]
[321410887,1712160441712,-10109.26173405,0.00021699,2]
[321410888,1712160545096,-227.86916179,0.0002161,2]
[321410889,1712160545117,-2691.86,0.00021611,2]
[321410890,1712160545138,-500.0,0.00021614,2]
[321410891,1712160545158,-19947.59128826,0.00021614,2]
[321410892,1712160552129,-64.15871174,0.00021614,2]
[321410893,1712160552149,-408.28,0.00021659,2]
[321410894,1712160552170,-558.19,0.00021662,2]
[321410895,1712160552190,-23900.0,0.00021662,2]
[321410896,1712160552210,-591.21797444,0.00021698,2]
[321410897,1712160552229,-162.33331382,0.00021698,2]
[321410898,1712160554162,-4382.37424316,0.00021698,2]
[321410899,1712160554187,-1157.06697529,0.00021699,2]
[321410900,1712160554208,-4362.12751029,0.000217,2]
[321410901,1712160554228,-50000.0,0.000217,2]
[321410902,1712160554251,-162.33,0.00021761,2]
[321410903,1712160554272,-152.4,0.00021771,2]
[321410904,1712160554295,-178.76,0.00021846,2]
[321410905,1712160554316,-860.0,0.00021918,2]
[321410906,1712160554339,-1186.21,0.00021965,2]
[321410907,1712160554361,-150.99,0.00022,2]
[321410908,1712160554379,-499.99,0.00022,2]
[321410909,1712160554400,-163.67,0.00022018,2]
[321410910,1712160554420,-1000.0,0.00022073,2]
[321410911,1712160554439,-2572.76633989,0.00022251,2]
[321410912,1712160554458,-150.99,0.00022384,2]
[321410913,1712160554477,-1111.03,0.00022384,2]
[321410914,1712160620969,299.074005,0.00022466,2]
[321410922,1712160631843,-963.59,0.00022582,2]
[321410923,1712160631853,-805.55148,0.0002285,2]
[321410924,1712160631862,-2687.52290105,0.00022898,2]
[321410925,1712160631872,-389.22752065,0.0002294,2]
[321410926,1712160631881,-4757.31978525,0.00022952,2]
[321410927,1712160631892,-5737.02258153,0.00022952,2]
[321410928,1712160631965,-625.79409021,0.00022952,2]
[321410931,1712160637559,-1000.0,0.00022879,2]
[321410932,1712160637568,-1038.07062595,0.00022951,2]
[321410933,1712160637577,-230.18345721,0.00022952,2]
[321410934,1712160637670,-690.29966645,0.00022952,2]
[321410935,1712160637681,-118.45064132,0.00022984,2]
[321410936,1712160637696,-52.22935868,0.00022984,2]
[321410937,1712160637706,-178.76,0.00022984,2]
[321410938,1712160637717,-510.28788087,0.0002299,2]
[321410939,1712160637729,-420.8888349,0.0002299,2]
[321410940,1712160637740,-4.19898423,0.0002299,2]
[321410941,1712160637750,-320.75765775,0.0002299,2]
[321410942,1712160637761,-454.09389728,0.0002299,2]
[321410943,1712160637773,-1004.45764497,0.0002299,2]
[321410944,1712160637782,-181.85,0.0002299,2]
[321410945,1712160637791,-1451.01235503,0.00022998,2]
[321410946,1712160637812,-826.48948388,0.00022998,2]
[321410947,1712160637822,-351.70999999,0.00022998,2]
[321410948,1712160637831,-447.91886793,0.00022998,2]
[321410949,1712160637842,-201.76585533,0.00022998,2]
[321410950,1712160637852,-484.01967723,0.00022999,2]
[321410951,1712160637862,-1926.59849626,0.00022999,2]
[321410952,1712160637872,-61.48237165,0.00022999,2]
[321410953,1712160637884,-438.50762835,0.00022999,2]
[321410954,1712160637893,-220.06537165,0.00022999,2]
[321410955,1712160638008,-62.76989714,0.00022999,2]
[321410956,1712160638018,-230.82110475,0.00022999,2]
[321410957,1712160638029,-63.37672611,0.00023,2]
[321410962,1712160638087,-0.00081869,0.00023,2]
[321410967,1712160638227,-339.02462311,0.00023,2]
[321410968,1712160638353,-32567.18704202,0.00023,2]
[321410998,1712160639688,-692.25976776,0.00022952,2]
[321411055,1712160639985,-2605.72601391,0.00022952,2]
[321411059,1712160639995,-66768.01880144,0.00023,2]
[321411064,1712160640016,-1231.84500005,0.00023,2]
[321411068,1712160640028,-849.63843625,0.00023,2]
[321411141,1712160642614,-39690.73826595,0.0002299,2]
[321411143,1712160642624,-93161.38777728,0.00023,2]
[321411146,1712160642968,-4180.22150524,0.00023,2]
[321411147,1712160643088,-2052.49367104,0.00023,2]
[321411175,1712160645823,-393868.27431232,0.00023,2]
[321411176,1712160645832,-1053.02,0.00023052,2]
[321411177,1712160645842,-1053.02,0.00023058,2]
[321411178,1712160645851,-1053.02,0.00023064,2]
[321411179,1712160645860,-1053.02,0.0002307,2]
[321411180,1712160645869,-1053.02,0.00023076,2]
[321411181,1712160645878,-1053.02,0.00023082,2]
[321411182,1712160645888,-1053.02,0.00023088,2]
[321411183,1712160645897,-1053.02,0.00023094,2]
[321411184,1712160645906,-1053.02,0.000231,2]
[321411185,1712160645915,-1053.02,0.00023106,2]
[321411186,1712160645923,-1053.02,0.00023112,2]
[321411187,1712160645932,-1053.02,0.00023118,2]
[321411188,1712160645941,-1053.02,0.00023124,2]
[321411189,1712160645950,-1053.02,0.0002313,2]
[321411190,1712160645959,-1053.02,0.00023136,2]
[321411191,1712160645968,-1053.02,0.00023142,2]
[321411192,1712160645977,-1053.02,0.00023148,2]
[321411193,1712160645986,-1053.02,0.00023154,2]
[321411194,1712160645995,-1053.02,0.00023161,2]
[321411195,1712160646003,-1053.02,0.00023167,2]
[321411196,1712160646014,-805.55148,0.0002317,2]
[321411197,1712160646023,-299.074005,0.00023288,2]
[321411198,1712160646032,-805.55149,0.0002347,2]
[321411199,1712160646041,-605.99278475,0.0002349,2]
[321411200,1712160646051,-7727.98913328,0.00023678,2]
[321411201,1712160646060,-1725.75855417,0.0002374,2]
[321411202,1712160646070,-805.55148,0.0002379,2]
[321411203,1712160646079,-170.2,0.00023885,2]
[321411204,1712160646087,-162.33,0.00023937,2]
[321411205,1712160646097,-805.55148,0.000241,2]
[321411206,1712160646106,-299.074005,0.0002411,2]
[321411207,1712160646115,-1186.21,0.00024229,2]
[321411209,1712160646124,-165.3,0.00024247,2]
[321411211,1712160646133,-2691.86,0.0002435,2]
[321411212,1712160646142,-1223.9,0.00024393,2]
[321411214,1712160646151,-1223.9,0.000244,2]
[321411216,1712160646160,-1000.0,0.000244,2]
[321411218,1712160646170,-1223.9,0.00024406,2]
[321411220,1712160646179,-805.55149,0.0002441,2]
[321411222,1712160646188,-1223.9,0.00024412,2]
[321411224,1712160646198,-1223.9,0.00024419,2]
[321411226,1712160646207,-1223.9,0.00024425,2]
[321411227,1712160646216,-1223.9,0.00024432,2]
[321411228,1712160646225,-1223.9,0.00024438,2]
[321411229,1712160646234,-1223.9,0.00024445,2]
[321411230,1712160646243,-1223.9,0.00024451,2]
[321411231,1712160646252,-1223.9,0.00024457,2]
[321411232,1712160646262,-1223.9,0.00024464,2]
[321411233,1712160646271,-1223.9,0.0002447,2]
[321411234,1712160646281,-1223.9,0.00024477,2]
[321411235,1712160646290,-1223.9,0.00024483,2]
[321411236,1712160646299,-1223.9,0.00024489,2]
[321411237,1712160646308,-1223.9,0.00024496,2]
[321411238,1712160646317,-2000.0,0.000245,2]
[321411239,1712160646328,-1000.0,0.000245,2]
[321411240,1712160646338,-215.96061491,0.000245,2]
[321411241,1712160646349,-1223.9,0.00024502,2]
[321411242,1712160646358,-1223.9,0.00024509,2]
[321411243,1712160646367,-1223.9,0.00024515,2]
[321411244,1712160646376,-1303.49167806,0.00024548,2]
[321411245,1712160646386,-226812.28911118,0.000246,2]
[321411246,1712160646433,-567.80056773,0.000246,2]
[321411247,1712160646566,-942.76985052,0.000246,2]
[321411248,1712160652094,14183.28155594,0.00022384,2]
[321411249,1712160671772,3006.19144135,0.00022384,2]
[321411251,1712161297165,-658.99743296,0.00021957,2]
[321411252,1712161302083,1054.87,0.00021308,2]
[321411253,1712161374857,150.0,0.000219,2]
[321411254,1712161427093,7890.05891338,0.000219,2]
[321411255,1712161546587,724.05,0.00022989,2]
[321411256,1712161642165,-250.0,0.00023016,2]
[321411257,1712161642185,-2304.36,0.00023045,2]
[321411258,1712161642205,-250.0,0.00023047,2]
[321411259,1712161642225,-2930.15013257,0.0002305,2]
[321411260,1712161688238,1000.0,0.00023,2]
[321411261,1712161813305,1002.12,0.00021389,2]
[321411279,1712161831783,-548.57,0.0002305,2]
[321411285,1712161831841,-1162.26223792,0.0002305,2]
[321411287,1712161831854,-381.03762951,0.0002305,2]
[321411288,1712161831864,-197.60767049,0.00023073,2]
[321411292,1712161831889,-637.5005939,0.00023073,2]
[321411294,1712161831902,-1723.32173561,0.00023073,2]
[321411296,1712161831912,-151.78571175,0.00023097,2]
[321411299,1712161831970,-2274.26238943,0.00023097,2]
[321411300,1712161831981,-3554.46820014,0.00023097,2]
[321411301,1712161831992,-3854.0400004,0.00023097,2]
[321411302,1712161832003,-2498.078602,0.00023097,2]
[321411303,1712161832014,-1325.14524,0.00023097,2]
[321411304,1712161832026,-709.93992774,0.00023097,2]
[321411305,1712161832037,-925.52503418,0.00023097,2]
[321411306,1712161832101,-8606.75489436,0.00023097,2]
[321411307,1712161832110,-500.0,0.00023097,2]
[321411308,1712161832119,-181.74660482,0.000231,2]
[321411309,1712161832129,-150.0,0.00023138,2]
[321411310,1712161832138,-1000.0,0.00023152,2]
[321411311,1712161832147,-500.0,0.00023174,2]
[321411312,1712161832158,-402.57,0.00023182,2]
[321411313,1712161832167,-156.83,0.00023247,2]
[321411314,1712161832176,-4768.42,0.00023281,2]
[321411315,1712161832185,-499.99,0.00023281,2]
[321411316,1712161832194,-209.351803,0.00023288,2]
[321411317,1712161832204,-2229.66,0.00023404,2]
[321411318,1712161832213,-890.68,0.00023546,2]
[321411319,1712161832222,-168.72,0.00023583,2]
[321411320,1712161832231,-2782.34,0.00023583,2]
[321411321,1712161832240,-1002.12,0.00023652,2]
[321411322,1712161832249,-167.57,0.00023892,2]
[321411323,1712161832258,-904.55,0.000239,2]
[321411325,1712161832268,-10000.0,0.00024,2]
[321411327,1712161832278,-209.351803,0.0002411,2]
[321411329,1712161832287,-1302.30550456,0.00024277,2]
[321411331,1712161832296,-904.55,0.00024358,2]
[321411333,1712161832305,-904.55,0.00024358,2]
[321411335,1712161832313,-2032.41728705,0.0002449,2]
[321411341,1712161832349,-7568.21360856,0.0002449,2]
[321411350,1712161832385,-1235.92672693,0.0002449,2]
[321411352,1712161832394,-3153.46419281,0.0002449,2]
[321411354,1712161832404,-500.0,0.00024503,2]
[321411356,1712161832413,-500.0,0.00024503,2]
[321411358,1712161832423,-500.0,0.00024503,2]
[321411360,1712161832433,-500.0,0.00024503,2]
[321411362,1712161832442,-500.0,0.00024503,2]
[321411364,1712161832452,-500.0,0.00024503,2]
[321411366,1712161832461,-500.0,0.00024503,2]
[321411368,1712161832470,-500.0,0.00024503,2]
[321411370,1712161832479,-500.0,0.00024503,2]
[321411372,1712161832488,-908.96496575,0.0002457,2]
[321411374,1712161832498,-2592.878305,0.0002459,2]
[321411376,1712161832506,-2000.0,0.000246,2]
[321411378,1712161832515,-200.0,0.000246,2]
[321411380,1712161832525,-51506.21607192,0.000246,2]
[321411386,1712161832629,-500.0,0.00024503,2]
[321411387,1712161832639,-8208.92946294,0.000246,2]
[321411388,1712161832651,-8738.14549571,0.000246,2]
[321411389,1712161832664,-181546.70896943,0.000246,2]
[321411390,1712161832674,-2000.0,0.000246,2]
[321411391,1712161832683,-200.0,0.000246,2]
[321411392,1712161832696,-1032.09457483,0.000246,2]
[321411393,1712161832705,-200.0,0.000246,2]
[321411394,1712161832714,-200.0,0.000246,2]
[321411395,1712161832723,-76463.3924189,0.00024607,2]
[321411396,1712161832732,-5002.927,0.00024624,2]
[321411397,1712161832742,-413.67010095,0.0002463,2]
[321411398,1712161832751,-170.68,0.00024686,2]
[321411399,1712161832761,-150.0,0.00024711,2]
[321411400,1712161832772,-1302.30550456,0.00024721,2]
[321411401,1712161832781,-150.0,0.00024722,2]
[321411402,1712161832790,-300.0,0.00024727,2]
[321411403,1712161832799,-150.0,0.0002473,2]
[321411404,1712161832808,-300.0,0.00024733,2]